[Event "Romanian Rapid Open 2022"]
[Site "Sebes"]
[Date "2022.12.02"]
[Round "3.16"]
[White "Dobre, Ana-Margareta-Alexan"]
[Black "Talu, Mircea"]
[Result "0-1"]
[ECO "B23"]
[WhiteElo "1857"]
[BlackElo "2327"]
[Annotator "TA"]
[PlyCount "58"]
[EventDate "2022.12.02"]
[EventType "rapid"]
[EventCountry "ROU"]
[SourceTitle "playchess.com"]
[Source "ChessBase"]
[SourceQuality "1"]
[TimeControl "600+5"]

{[%evp 12,58,5,5,14,16,27,10,17,10,8,14,34,-19,-14,-32,-33,-25,0,0,12,10,21,18,6,19,26,9,93,69,118,3,37,-212,-200,-314,-292,-541,-587,-577,-541,-642,-643,-735,-536,-490,-517,-1133,-1133]} 1. e4 {[%emt 0:00:02]} c5 {[%emt 0:00:08]} 2. Nc3 {[%emt 0:00:01]} Nc6 {[%emt 0:00:04]} 3. Bb5 {[%emt 0:00:02]} d6 {[%emt 0:00:56]} 4. f4 {[%emt 0:00:44]} Bd7 {[%emt 0:00:07]} 5. Nf3 {[%emt 0:00:22]} g6 {[%emt 0:00:09]} 6. O-O {[%emt 0:00:28]} Bg7 {[%emt 0:00:04]} 7. d3 {[%emt 0:01:33]} a6 {[%emt 0:00:11] B23: Closed Sicilian: Lines without g3.} 8. Bc4 {[%emt 0:01:05][%cal Oe4e5]} b5 {[%emt 0:09:06] Inhibits e5.} 9. Bb3 {[%cal Oe4e5]} Na5 {[%emt 0:00:00] The position is equal.} 10. Bd5 {[%emt 0:00:34] [#] Ng5 is the strong threat.} Rb8 {[%emt 0:00:00] [#]} 11. f5 $146 {[%emt 0:01:02]} ({Predecessor:} 11. a3 c4 12. f5 Nf6 13. fxg6 hxg6 14. d4 e6 15. b4 exd5 16. bxa5 dxe4 17. Bg5 {1-0 (26) Heckert,K (2047)-Sulayev,D (1924) Germany 2016}) 11... Nf6 {[%emt 0:00:00]} 12. fxg6 {[%emt 0:00:20]} ({White should play} 12. Ng5 $14 Rf8 13. fxg6 hxg6 14. Kh1) 12... hxg6 $11 {[%emt 0:00:00]} 13. Ng5 {[%emt 0:02:40]} e6 $1 {[%emt 0:00:00] aiming for ...b4.} 14. Bb3 {[%emt 0:00:00][%cal Oe4e5]} c4 {[%emt 0:00:00] Inhibits e5.} 15. dxc4 {[%emt 0:00:02]} Qb6+ {[%emt 0:00:00]} (15... bxc4 $5 16. Ba4 Bxa4 17. Nxa4 Nc6 $15) 16. Kh1 {[%emt 0:00:24][%cal Oe4e5] Strongly threatening e5!} bxc4 {[%emt 0:00:00]} 17. Ba4 {[%emt 0:00:01]} Bxa4 $40 {[%emt 0:00:00][%mdl 128] Black has some attack. The board is on fire.} 18. Nxa4 {[%emt 0:00:01]} Qc6 {[%emt 0:00:00][%csl LRa4,LRe4]} 19. Nc3 {[%emt 0:00:01]} Rh5 {[%emt 0:00:07] [#]} (19... Qc7 $11 {keeps the balance.}) 20. Qf3 $1 $16 {[%emt 0:00:48]} Nb7 {[%emt 0:00:34]} (20... Rb7 $14) 21. Ne2 {[%emt 0:00:29]} (21. Bf4 $16) 21... Nc5 {[%emt 0:00:03][%cal Rc5e4]} 22. Nd4 $2 {[%emt 0:00:14] This costs White the game.} (22. Ng3 $1 $14 {stays ahead.} Rh8 23. h3) 22... Qb7 $19 {[%emt 0:00:11][%cal Rf6e4] Active counter play!} 23. c3 {[%emt 0:00:12]} (23. e5 {was called for.} Qxf3 24. Ndxf3 dxe5 25. Re1 (25. Nxe5 $2 {loses.} Nfe4 $19)) 23... Ncxe4 {[%emt 0:00:05]} 24. Ngxe6 {[%emt 0:00:38]} (24. Nxe4 Nxe4 25. Kg1) 24... fxe6 {[%emt 0:00:03] Black is clearly winning.} 25. Nxe6 {[%emt 0:00:02]} Kf7 {[%emt 0:00:09]} 26. Nd4 {[%emt 0:00:10]} Rbh8 {[%emt 0:00:03]} 27. Bf4 {[%emt 0:00:07]} Qd7 {[%emt 0:00:07]} 28. Rae1 {[%emt 0:00:03]} d5 {[%emt 0:00:03] And now ...g5 would win.} 29. Be5 {[%emt 0:00:05]} (29. Kg1 $142) 29... Rxe5 {[%emt 0:00:03] Weighted Error Value: White=0.70/Black=0.25 (precise)} 0-1

[Event "Romanian Rapid Open 2022"]
[Site "Sebes"]
[Date "2022.12.02"]
[Round "3.17"]
[White "Cosma, Ioan"]
[Black "Berescu, Alin-Mile"]
[Result "1-0"]
[ECO "A13"]
[WhiteElo "2368"]
[BlackElo "2429"]
[Annotator "TA"]
[PlyCount "59"]
[EventDate "2022.12.02"]
[EventType "rapid"]
[EventCountry "ROU"]
[SourceTitle "playchess.com"]
[Source "ChessBase"]
[SourceQuality "1"]
[TimeControl "600+5"]

{[%evp 11,59,25,41,3,8,8,8,10,9,5,35,46,35,29,48,0,48,45,37,14,29,25,9,4,26,28,18,-35,-61,-101,-117,-110,-111,-128,-120,-112,-56,-71,-33,-19,-25,-10,160,162,168,87,198,18,834,814]} 1. Nf3 {[%emt 0:00:01]} Nf6 {[%emt 0:00:06]} 2. c4 {[%emt 0:00:05]} e6 {[%emt 0:00:07]} 3. g3 {[%emt 0:00:02]} a6 {[%emt 0:00:11]} 4. Bg2 {[%emt 0:00:20]} b5 {[%emt 0:00:02]} 5. b3 {[%emt 0:00:09]} Bb7 {[%emt 0:00:05]} 6. O-O {[%emt 0:00:03]} c5 {[%emt 0:00:13]} 7. Bb2 {[%emt 0:00:28] A13: English Opening: 1...e6.} d6 {[%emt 0:00:21]} 8. e3 {[%emt 0:00:15]} Be7 {[%emt 0:00:05]} 9. Qe2 {[%emt 0:00:05] The position is equal.} Qb6 {[%emt 0:00:32]} 10. Nc3 {[%emt 0:00:14][%cal Rc4b5]} b4 {[%emt 0:00:25]} (10... bxc4 $5 11. Qxc4 O-O $11) 11. Na4 {[%emt 0:00:11]} Qc7 {[%emt 0:00:02]} 12. d3 {[%emt 0:00:17] [#]} Nbd7 $146 {[%emt 0:00:04]} ({Predecessor:} 12... O-O 13. Nd2 Bxg2 14. Kxg2 Nfd7 15. Rad1 {½-½ (15) Buhmann,R (2583)-Socko,B (2660) Polanica Zdroj 2007}) 13. e4 {[%emt 0:00:12]} (13. Nh4 $14) 13... e5 {[%emt 0:01:27]} (13... O-O $11) 14. Nh4 $14 {[%emt 0:00:15]} g6 {[%emt 0:02:12]} 15. Bc1 {[%emt 0:00:15]} Nf8 {[%emt 0:00:32]} 16. f4 {[%emt 0:01:08]} Ne6 {[%emt 0:00:04]} 17. Bb2 {[%emt 0:00:45]} Nd4 {[%emt 0:00:38]} 18. Bxd4 {[%emt 0:00:13]} cxd4 {[%emt 0:00:03]} 19. fxe5 {[%emt 0:00:14]} (19. Nf3 $11) 19... dxe5 $15 {[%emt 0:00:02]} 20. Rf2 {[%emt 0:00:16]} O-O {[%emt 0:00:05]} 21. Raf1 {[%emt 0:00:19]} Kg7 {[%emt 0:00:26]} 22. Bh3 {[%emt 0:00:14][%cal Oc4c5]} Bc6 {[%emt 0:00:08]} 23. Nb2 {[%emt 0:00:16]} Ng8 {[%emt 0:00:20]} (23... a5 $17) 24. Qg4 {[%emt 0:00:29]} Bxh4 {[%emt 0:00:32]} (24... Bf6 {with more complications.} 25. c5 Bxh4 26. Qxh4 Bb5) 25. gxh4 {[%emt 0:00:39]} h5 {[%emt 0:00:08]} ({Much less strong is} 25... Kh8 26. Qg3 $14) 26. Qg3 {[%emt 0:00:12]} Kh7 $2 {[%emt 0:00:20] [#]} (26... f6 $11) 27. Be6 $1 $16 {[%emt 0:00:14][%mdl 512]} Nh6 {[%emt 0:00:12]} 28. h3 {[%emt 0:00:22]} (28. Rf6 $18 {[%cal Oe6f7] aiming for Bxf7!} Be8 29. Bd5) 28... Rae8 {[%emt 0:00:23] [#]} (28... Ra7 $16) 29. Bd5 $2 {[%emt 0:00:04]} (29. Rf6 $1 $18) 29... Bd7 $2 {[%emt 0:00:02][%mdl 8192] Inhibits c5.} (29... Bxd5 $11 30. cxd5 f5) 30. Bxf7 {[%emt 0:00:16] Weighted Error Value: White=0.26 (precise) /Black=0.32} 1-0

[Event "Romanian Rapid Open 2022"]
[Site "Sebes"]
[Date "2022.12.02"]
[Round "3.18"]
[White "Arandjelovic, Aleksandar Z"]
[Black "Sfarlog, Tudor-Vlad"]
[Result "1-0"]
[ECO "E85"]
[WhiteElo "1899"]
[BlackElo "2283"]
[Annotator "TA"]
[PlyCount "73"]
[EventDate "2022.12.02"]
[EventType "rapid"]
[EventCountry "ROU"]
[SourceTitle "playchess.com"]
[Source "ChessBase"]
[SourceQuality "1"]
[TimeControl "600+5"]

{[%evp 15,73,55,83,31,87,79,95,9,21,14,74,65,89,78,87,78,175,63,161,80,65,65,62,52,78,36,46,-31,-31,-52,0,0,0,-41,95,94,99,48,54,0,25,0,577,559,696,696,663,657,580,561,870,874,871,857,826,808,942,853,933,927]} 1. d4 {[%emt 0:00:01]} g6 {[%emt 0:00:00]} 2. c4 {[%emt 0:00:01]} Bg7 {[%emt 0:00:01]} 3. Nc3 {[%emt 0:00:01]} d6 {[%emt 0:00:00]} 4. e4 {[%emt 0:00:01]} Nd7 {[%emt 0:00:01]} 5. f3 {[%emt 0:00:02]} e5 {[%emt 0:00:01]} 6. Be3 {[%emt 0:00:02]} Ngf6 {[%emt 0:02:01]} 7. d5 {[%emt 0:00:01]} O-O {[%emt 0:00:02]} 8. Nge2 {[%emt 0:00:03]} Ne8 {[%emt 0:00:03]} 9. g4 {[%emt 0:00:06] White is more active. E85: King's Indian: Sämisch: 6...e5.} (9. h4 $16) 9... f5 {[%emt 0:00:02]} ({Better is} 9... Bh6 $14 10. Bxh6 Qh4+ 11. Kd2 Qxh6+ 12. Kc2 f5) 10. gxf5 {[%emt 0:00:00]} gxf5 {[%emt 0:00:01]} 11. Qd2 {[%emt 0:00:27] [#]} (11. exf5 $16 {Black must now prevent Ng3.} Rxf5 12. Ng3) 11... Qh4+ $146 {[%emt 0:01:07]} ({Predecessor:} 11... f4 12. Bf2 Nc5 13. b4 Nd7 14. a3 Bf6 15. Nc1 a5 16. Nb3 axb4 17. axb4 Rxa1+ 18. Nxa1 {½-½ (46) Havelka,O (2160)-Dobrovolsky,L (2238) Ostrava 2021}) 12. Bf2 {[%emt 0:00:07]} Qe7 {[%emt 0:00:01]} (12... Qf6 $11 {keeps the balance.}) 13. Ng3 $16 {[%emt 0:02:07]} Nc5 {[%emt 0:00:02]} 14. b4 {[%emt 0:00:29]} Na6 {[%emt 0:00:04]} 15. a3 {[%emt 0:00:14]} (15. Bh3 {seems wilder.} fxe4 16. Bxc8 e3 17. Bxe3 Rxc8 18. O-O) 15... Qf7 {[%emt 0:00:54]} (15... f4 $16) 16. Be2 {[%emt 0:00:23]} (16. Nxf5 $18 Bxf5 17. exf5) 16... Kh8 {[%emt 0:00:26] [#]} (16... f4 $14) 17. O-O-O {[%emt 0:00:11]} (17. exf5 $1 $18 {is more deadly. Hoping for h4.} Bxf5 18. h4) 17... f4 {[%emt 0:01:12] Against h4} 18. Nf5 {[%emt 0:00:18]} Bxf5 {[%emt 0:00:21]} 19. exf5 {[%emt 0:00:02]} Qxf5 {[%emt 0:00:24]} 20. Bd3 {[%emt 0:00:01]} (20. Rdg1 {keeps more tension.} c5 21. dxc6 bxc6 22. Bd3) 20... Qh5 {[%emt 0:00:22]} 21. Be4 {[%emt 0:00:24]} (21. Qe2 $1 $14) 21... Nf6 $15 {[%emt 0:00:01]} 22. Qd3 {[%emt 0:00:30]} Nxe4 {[%emt 0:00:43]} ({Black should play} 22... Nb8 $15) 23. Nxe4 $11 {[%emt 0:00:02]} Nb8 $1 {[%emt 0:00:25]} 24. h4 {[%emt 0:00:01][%cal Bh2h4,Bh4h5][%mdl 32]} Qf5 {[%emt 0:00:50]} (24... Nd7 $15 {stays ahead.}) 25. h5 $16 {[%emt 0:00:38][%mdl 1024] White has strong compensation.} Bh6 {[%emt 0:00:05]} 26. Rhg1 {[%emt 0:00:15]} (26. c5 $16) 26... Nd7 {[%emt 0:00:00]} (26... Qxh5 $2 27. Rh1 Qg6 28. Rdg1 $18) 27. Bh4 {[%emt 0:00:11] Against Nf6} (27. c5 $14) 27... a5 {[%emt 0:00:11]} (27... Qxh5 28. Rh1 Qf5 29. Be7 $16) (27... b6 $5 {[%cal Ra7a5]}) 28. b5 {[%emt 0:00:14]} Nc5 $2 {[%emt 0:01:12][%mdl 8192] [#]} ({Much less strong is} 28... Qxh5 29. Rh1 Qf5 30. Be7 $16) (28... Rf7 $11 {and Black stays safe.}) 29. Nxc5 $18 {[%emt 0:00:12] White is clearly winning.} dxc5 {[%emt 0:00:01]} 30. Qxf5 {[%emt 0:00:13]} Rxf5 {[%emt 0:00:03]} 31. d6 {[%emt 0:00:03]} cxd6 {[%emt 0:00:42]} 32. Rxd6 {[%emt 0:00:01]} Bg7 {[%emt 0:00:35]} 33. h6 {[%emt 0:00:07]} Bf8 {[%emt 0:00:01]} 34. Bf6+ {[%emt 0:00:32]} Rxf6 {[%emt 0:00:01]} 35. Rxf6 {[%emt 0:00:02]} Re8 {[%emt 0:00:08]} 36. a4 {[%emt 0:00:12]} Rd8 {[%emt 0:00:02]} 37. Kc2 {[%emt 0:00:09] Weighted Error Value: White=0.33/Black=0.70} 1-0

[Event "Romanian Rapid Open 2022"]
[Site "Sebes"]
[Date "2022.12.02"]
[Round "3.19"]
[White "Ceteras, Marius-Nicolae"]
[Black "Coicev, Matei-Andrei"]
[Result "1/2-1/2"]
[ECO "E16"]
[WhiteElo "2391"]
[BlackElo "2009"]
[Annotator "TA"]
[PlyCount "50"]
[EventDate "2022.12.02"]
[EventType "rapid"]
[EventCountry "ROU"]
[SourceTitle "playchess.com"]
[Source "ChessBase"]
[SourceQuality "1"]
[TimeControl "600+5"]

{[%evp 20,50,28,24,11,11,16,0,0,0,0,-55,-43,-50,-30,-25,-34,-35,-29,-34,7,7,7,6,10,9,8,-18,12,20,21,14,36]} 1. d4 {[%emt 0:10:10]} Nf6 {[%emt 0:10:10]} 2. Nf3 {[%emt 0:00:05]} e6 {[%emt 0:00:05]} 3. c4 {[%emt 0:00:05]} Bb4+ {[%emt 0:00:05]} 4. Bd2 {[%emt 0:00:05]} a5 5. g3 {[%emt 0:00:05]} b6 {[%emt 0:00:10]} 6. Bg2 Bb7 {[%emt 0:00:05]} 7. O-O {[%emt 0:00:10]} O-O {[%emt 0:00:05]} 8. Nc3 {[%emt 0:00:05]} Bxc3 {[%emt 0:00:05]} 9. Bxc3 {[%emt 0:00:05]} Ne4 {[%emt 0:00:05]} 10. Qc2 {[%emt 0:00:05]} Nxc3 {[%emt 0:00:05]} 11. Qxc3 {[%emt 0:00:05]} Qe7 {[%emt 0:00:05] [#] E16: Queen's Indian: 4 g3 Bb7 5 Bg2 Bb4+.} 12. c5 $146 {[%emt 0:00:05]} ({Predecessor:} 12. Ne1 Bxg2 13. Nxg2 Qb4 {½-½ (13) Vertetics,A (2261)-Orso,M (2353) Hungary 2007}) 12... Na6 {[%emt 0:00:05][%cal Rb6c5]} 13. Rac1 {[%emt 0:00:05]} Nb4 {[%emt 0:00:05]} 14. Qa3 {[%emt 0:00:05]} d6 {[%emt 0:00:05][%cal Rd6c5]} 15. Nd2 {[%emt 0:00:05]} ({Better is} 15. Rfd1 $11) 15... Bxg2 $15 {[%emt 0:00:05]} 16. Kxg2 Qg5 {[%emt 0:00:05]} (16... bxc5 {simplifies} 17. dxc5 d5 18. Rfd1 Nc6) 17. Nf3 {[%emt 0:00:10]} Qd5 {[%emt 0:00:05][%cal Rd6c5]} 18. cxb6 {[%emt 0:00:05]} cxb6 {[%emt 0:00:05]} (18... Nxa2 $2 19. e4 (19. Rxc7 Nb4 $16) 19... Qxe4 20. Qxa2 $18) 19. Qb3 {[%emt 0:00:05]} Nxa2 {[%emt 0:00:05]} 20. Qxd5 {[%emt 0:00:05] The position is equal.} exd5 {[%emt 0:00:05]} 21. Rc6 {[%csl LRb6,LRd6]} Rab8 {[%emt 0:00:05]} 22. Rxd6 {[%emt 0:00:10]} Rfd8 {[%emt 0:00:05]} 23. Rxd8+ {[%emt 0:00:05]} Rxd8 {[%emt 0:00:05]} 24. Ra1 Nb4 {[%emt 0:00:05]} 25. Rc1 {[%emt 0:00:10] Against Rc8} f6 {[%emt 0:00:05] Inhibits Ne5.   Weighted Error Value: White=0.09 (flawless) /Black=0.05 (flawless)} 1/2-1/2

[Event "Romanian Rapid Open 2022"]
[Site "Sebes"]
[Date "2022.12.02"]
[Round "3.20"]
[White "Lup, Constantin-Ionel"]
[Black "Nastore, Pavel-Alexandru"]
[Result "1-0"]
[ECO "A20"]
[WhiteElo "1739"]
[BlackElo "2218"]
[Annotator "TA"]
[PlyCount "147"]
[EventDate "2022.12.02"]
[EventType "rapid"]
[EventCountry "ROU"]
[SourceTitle "playchess.com"]
[Source "ChessBase"]
[SourceQuality "1"]
[TimeControl "600+5"]

{[%evp 9,147,0,0,0,10,14,12,19,56,18,12,8,22,0,37,22,30,14,39,31,43,21,29,11,37,22,29,21,32,18,33,2,82,77,114,0,64,62,118,66,67,30,51,0,84,0,108,0,77,0,39,0,106,119,120,141,143,81,103,58,61,61,63,66,66,31,35,31,41,57,58,45,129,22,200,170,168,168,166,145,142,139,159,166,150,92,87,0,67,21,62,22,140,0,66,66,66,59,59,94,92,87,94,0,0,0,0,0,0,0,0,0,937,585,29977,29978,29973,29976,29978,29980,29980,29981,29981,29982,29982,29983,29985,29982,29982,29983,29987,29982,29985,29983,29987,29988,29988,29989,29989,29990]} 1. c4 {[%emt 0:00:03]} e5 {[%emt 0:00:01][%cal Be7e5,Be5e4][%mdl 32]} 2. g3 {[%emt 0:00:02]} c6 {[%emt 0:00:01]} 3. Bg2 {[%emt 0:00:03]} d5 {[%emt 0:00:03]} 4. cxd5 {[%emt 0:00:04]} cxd5 {[%emt 0:00:02]} 5. d4 {[%emt 0:00:04]} e4 {[%emt 0:00:04]} 6. a3 {[%emt 0:00:06] A20: English Opening: 1...e5.} Nf6 {[%emt 0:00:36]} 7. Nc3 {[%emt 0:00:03]} h6 {[%emt 0:00:36]} 8. f3 {[%emt 0:00:30] [#] The position is equal.} Bf5 $146 {[%emt 0:00:09]} ({Predecessor:} 8... exf3 9. Nxf3 Be7 10. O-O O-O 11. Nh4 Be6 12. Nf5 Nc6 13. Qd3 Rc8 14. Be3 Re8 15. Nxe7+ Qxe7 {0-1 (43) Smid,M (2236)-Carlsson,P (2434) Prague 2015}) 9. e3 {[%emt 0:02:09]} exf3 {[%emt 0:00:42]} 10. Nxf3 {[%emt 0:00:08][%cal Bg1f3,Bf3e5,Be5d3,Bd3f4][%mdl 32]} Nc6 {[%emt 0:02:08]} 11. O-O {[%emt 0:00:07]} Be7 {[%emt 0:00:19]} 12. Ne5 {[%emt 0:01:06]} Be6 {[%emt 0:00:02]} 13. Nd3 {[%emt 0:01:20]} O-O {[%emt 0:00:09]} 14. Nf4 {[%emt 0:00:15]} Qd7 {[%emt 0:00:27]} 15. Qf3 {[%emt 0:01:42][%cal Rc3d5]} Rad8 {[%emt 0:06:01]} 16. b4 {[%emt 0:01:25]} Rfe8 {[%emt 0:00:00]} (16... a5 $5 {[%cal Ra5b4]}) 17. Bd2 {[%emt 0:00:09]} Bf8 {[%emt 0:00:00]} 18. Nxe6 {[%emt 0:00:53]} Qxe6 {[%emt 0:00:00]} 19. Rae1 {[%emt 0:00:34]} b6 {[%emt 0:00:00]} 20. Qf5 {[%emt 0:00:37]} Qd6 {[%emt 0:00:00]} (20... a5 $11 {keeps the balance.}) 21. Nb5 $16 {[%emt 0:00:18]} Qd7 {[%emt 0:00:00]} 22. Nc3 {[%emt 0:00:08] Against Ne4. White is more active.} (22. Qxd7 $16 Rxd7 23. Rc1) 22... Re6 {[%emt 0:00:00]} (22... Qd6 $11) 23. Bh3 {[%emt 0:00:05]} Qe8 {[%emt 0:00:00]} (23... Qb7 $14) 24. Qf3 {[%emt 0:00:04]} (24. Qc2 $16) 24... Re7 $14 {[%emt 0:00:00]} 25. Bg2 {[%emt 0:00:02]} Qd7 {[%emt 0:00:00]} 26. Qf5 {[%emt 0:00:02]} Re6 {[%emt 0:00:00]} 27. Bh3 {[%emt 0:00:02]} Qe8 $1 {[%emt 0:00:00]} 28. Qf3 {[%emt 0:00:02]} Re7 {[%emt 0:00:00]} 29. Bg2 {[%emt 0:00:02]} (29. Qd1 $16) 29... Re6 {[%emt 0:00:31]} 30. Bh3 {[%emt 0:00:02]} Red6 {[%emt 0:00:01]} (30... Re7 $11) 31. Nb5 $16 {[%emt 0:00:06]} Ne4 {[%emt 0:00:06]} 32. Nxd6 {[%emt 0:00:06]} Rxd6 {[%emt 0:00:10]} 33. Re2 {[%emt 0:00:12]} (33. Qe2 $142) 33... Rf6 {[%emt 0:00:02] Prevents b5.} 34. Qg2 {[%emt 0:00:02]} (34. Qg4 {keeps more tension.} Rxf1+ 35. Kxf1 Nxd2+ 36. Rxd2 Qxe3 37. Qf4) 34... Rxf1+ {[%emt 0:00:13]} 35. Qxf1 {[%emt 0:00:02]} Nxd2 {[%emt 0:00:03][%mdl 64] Remove Defender} 36. Rxd2 {[%emt 0:00:02] And now Qf3 would win.} Qxe3+ {[%emt 0:00:02]} 37. Qf2 {[%emt 0:00:01]} (37. Rf2 $5 {[%cal Rg1h1]}) 37... Qxa3 {[%emt 0:00:04]} 38. Bd7 {[%emt 0:00:06]} (38. b5 Nxd4 $1 {[%mdl 512]} 39. Kg2 (39. Qxd4 $2 Bc5 $19) 39... Nxb5 40. Rxd5 Nd6 $17) 38... Nd8 {[%emt 0:00:18]} 39. b5 {[%emt 0:00:05]} Qd6 {[%emt 0:00:03]} 40. Bg4 {[%emt 0:00:06]} Ne6 {[%emt 0:00:05]} (40... g6 $14) 41. Bxe6 (41. Ra2 $16) 41... fxe6 $2 {[%mdl 4096] Endgame KQR-KQB} (41... Qxe6 $11 42. Rc2 Qd7) 42. Ra2 {[%emt 0:00:23]} Qd7 {[%emt 0:00:17]} 43. Qe2 {[%emt 0:00:02][%mdl 1024] White has strong compensation.} Be7 {[%emt 0:00:03]} 44. Rc2 {[%emt 0:00:03]} Bf6 {[%emt 0:00:02]} 45. Rd2 {[%emt 0:00:11]} Qd6 {[%emt 0:00:03] [#]} 46. Kg2 $1 {[%emt 0:00:09]} Kf7 {[%emt 0:00:03]} 47. Qh5+ {[%emt 0:00:03]} ({White should play} 47. Ra2 Qd7 48. Qd3) 47... Ke7 {[%emt 0:00:05]} 48. Qe2 {[%emt 0:00:02]} (48. Ra2 $16 Qc7 49. Qg4) 48... Qb4 {[%emt 0:00:04]} ({Black should try} 48... Kf7 $1 $11) 49. Qd3 {[%emt 0:00:22]} (49. Rc2 $1 $14 Qxd4 50. Rc7+ Kd8 51. Rxa7) 49... Kd6 {[%emt 0:00:06]} 50. Rd1 {[%emt 0:00:05]} (50. Qe3 {looks sharper.} h5 51. Qf4+ Kd7 52. Ra2) 50... Bg5 {[%emt 0:00:07] Prevents Rd2.} (50... Qb2+ $11 {remains equal.} 51. Rd2 Qa1) 51. Rf1 {[%emt 0:00:05]} (51. Qe2 $16) 51... Qd2+ {[%emt 0:00:20]} ({Better is} 51... Bf6 $11) 52. Qxd2 $14 {[%emt 0:00:00]} Bxd2 {[%emt 0:00:02] KR-KB} 53. Rf7 {[%emt 0:00:00]} Bc3 {[%emt 0:00:01]} 54. Rxg7 {[%emt 0:00:00]} (54. Rxa7 Bxd4 55. Rb7 Kc5 $17) 54... Bxd4 {[%emt 0:00:01]} 55. Rxa7 {[%emt 0:00:02] Strongly threatening Rh7.} Kc5 {[%emt 0:00:05]} 56. Re7 {[%emt 0:00:03]} (56. g4 $16) 56... e5 $11 {[%emt 0:00:02]} 57. Re6 {[%emt 0:00:03]} Kxb5 {[%emt 0:00:06] aiming for ...Kc4.} 58. Rxh6 {Threatens to win with g4.} Kc4 {...b5 is the strong threat.} 59. g4 {[%emt 0:00:04][%cal Bg3g4,Bg4g5][%mdl 32]} b5 {[%emt 0:00:01] White must now prevent ...b4.} 60. g5 {[%emt 0:00:03] White threatens g6 and mate.} Be3 $2 {[%emt 0:00:03][%mdl 8192] Against g6} (60... e4 $11 61. Rh7 b4) 61. Rh5 {[%emt 0:00:09] Intending g6 and mate.} e4 {[%emt 0:00:10]} 62. g6 {[%emt 0:00:01] White mates.} Bd4 {[%emt 0:00:01]} 63. Rh7 {[%emt 0:00:05]} b4 {[%emt 0:00:00]} 64. g7 {[%emt 0:00:01]} Bxg7 {[%emt 0:00:01]} 65. Rxg7 {[%emt 0:00:01] KR-K3P} b3 {[%emt 0:00:00]} 66. h4 {[%emt 0:00:04][%cal Bh2h4,Bh4h5,Bh5h6,Bh6h7][%mdl 32]} d4 {[%emt 0:00:01]} 67. h5 {[%emt 0:00:02]} d3 {[%emt 0:00:00]} 68. h6 {[%emt 0:00:04]} d2 {[%emt 0:00:20]} 69. Rc7+ {[%emt 0:00:27]} (69. h7 d1=Q 70. h8=Q (70. h8=R $2 Qc2+ 71. Kh1 b2 $19) (70. Rc7+ $2 Kb5 $19) 70... Qe2+ 71. Kh3 Qf1+ 72. Kh2 Qf4+ 73. Rg3 Qf2+ 74. Rg2 Qf4+ 75. Kh1 Qf1+ 76. Rg1 Qf3+ 77. Kh2 Qf2+ 78. Rg2 Qf4+ 79. Kh3 Qf3+ 80. Kh2 Qf4+ $11) 69... Kb4 {[%emt 0:00:06]} 70. Rb7+ {[%emt 0:00:04]} (70. h7 d1=Q 71. Rb7+ (71. h8=R Qf3+ 72. Kh2 Qf4+ 73. Kg2 Qxc7 74. Rh4 Qc2+ 75. Kh3 b2 76. Rh6 Qf2 77. Rh8 Qf4 78. Rh7 Qf5+ 79. Kh4 Qxh7+ 80. Kg5 b1=Q 81. Kf6 e3 82. Ke6 Qbf5+ 83. Kd6 Qhd7#) 71... Ka3 72. Ra7+ (72. h8=R Qd2+ 73. Kf1 e3 74. Ra7+ Kb2 75. Kg1 e2 76. Re7 e1=Q+ 77. Rxe1 Qxe1+ 78. Kg2 Qe4+ 79. Kf1 Qc4+ 80. Kg2 Qd5+ 81. Kf1 Qf7+ 82. Ke1 Qe7+ 83. Kd2 Qd6+ 84. Ke1 Qe5+ 85. Kf2 Qxh8 86. Kg3 Qd4 87. Kg2 Qg4+ 88. Kf2 Kc2 89. Ke1 b2 90. Kf1 b1=Q+ 91. Kf2 Qbg1#) (72. h8=Q Qf3+ 73. Kh2 Qf2+ 74. Kh3 Qf5+ 75. Kh4 Qf4+ 76. Kh3 Qf5+ 77. Kh4 Qf4+ 78. Kh3 Qf5+ $11) 72... Kb4 73. Rb7+ (73. h8=R Qf3+ 74. Kg1 Qe3+ 75. Kh2 Qf2+ 76. Kh1 Qxa7 77. Rh4 Qa1+ 78. Kg2 Qb2+ 79. Kh1 Qc1+ 80. Kh2 Qc2+ 81. Kh3 b2 82. Rh6 Qf2 83. Rh8 Qf4 84. Rh7 Qf5+ 85. Kg3 Qxh7 86. Kf4 b1=Q 87. Kg3 Qf1 88. Kg4 Qff5+ 89. Kg3 Qhh3#) 73... Ka3 $11) 70... Ka3 {[%emt 0:00:11]} 71. Ra7+ {[%emt 0:00:02]} Kb4 {[%emt 0:00:06]} 72. Rd7 {[%emt 0:00:02]} b2 {[%emt 0:00:04]} 73. h7 $1 {[%emt 0:00:02]} (73. Rxd2 $2 {perishes.} b1=Q 74. h7 Qa1 $19) ({Stronger than} 73. Kf2 Kc4 74. h7 (74. Rc7+ $2 Kd5 $19) 74... b1=Q $11) 73... b1=Q {[%emt 0:00:07]} 74. Rb7+ {[%emt 0:00:01][%mdl 64] Skewer.   Weighted Error Value: White=0.32/Black=0.26 (precise)} (74. h8=R d1=Q 75. Rb8+ Kc5 76. Rc8+ Kb6 77. Rb8+ Kc6 78. Rxb1 Qc2+ 79. Kg3 Qxb1 80. Rh7 e3 81. Rh6+ Kd7 82. Kf3 Qd1+ 83. Kxe3 Qc1+ 84. Ke4 Qxh6 85. Kd3 Qf4 86. Kc3 Kc6 87. Kd3 Kc5 88. Kc3 Qe3+ 89. Kc2 Kc4 90. Kd1 Qf2 91. Kc1 Kc3 92. Kd1 Qf1#) 1-0